Workbook

Sheet 분기별 판매 보고서
A2: 분기별 판매 보고서 | J2: 상위 표시 | K2: 5 | L2: 제품
J4: 기타 모두 표시 | K4: 아니요 | L4: 제품
B34: 제품 | C34: 1분기 | D34: 2분기 | E34: 3분기 | F34: 4분기 | G34: 합계
B35: 프레임 | C35: 4000000 | D35: 4500000 | E35: 5000000 | F35: 5000000 | G35: =SUM(Sales[[#This Row],[1분기]:[4분기]]) -> 18500000
B36: 디스크 브레이크, 전방 | C36: 294000 | D36: 250000 | E36: 323000 | F36: 368000 | G36: =SUM(Sales[[#This Row],[1분기]:[4분기]]) -> 1235000
B37: 캘리퍼 브레이크, 전방 | C37: 200000 | D37: 170000 | E37: 220000 | F37: 250000 | G37: =SUM(Sales[[#This Row],[1분기]:[4분기]]) -> 840000
B38: 디스크 브레이크, 후방 | C38: 400000 | D38: 340000 | E38: 440000 | F38: 500000 | G38: =SUM(Sales[[#This Row],[1분기]:[4분기]]) -> 1680000
B39: 캘리퍼 브레이크, 후방 | C39: 294000 | D39: 250000 | E39: 323000 | F39: 368000 | G39: =SUM(Sales[[#This Row],[1분기]:[4분기]]) -> 1235000
B40: 안장 | C40: 235000 | D40: 200000 | E40: 32000 | F40: 294000 | G40: =SUM(Sales[[#This Row],[1분기]:[4분기]]) -> 761000
B41: 포크 | C41: 100000 | D41: 85000 | E41: 110000 | F41: 125000 | G41: =SUM(Sales[[#This Row],[1분기]:[4분기]]) -> 420000
B42: 브레이크 케이블 | C42: 300000 | D42: 255000 | E42: 330000 | F42: 375000 | G42: =SUM(Sales[[#This Row],[1분기]:[4분기]]) -> 1260000
B43: 변속기 케이블 | C43: 250000 | D43: 213000 | E43: 275000 | F43: 313000 | G43: =SUM(Sales[[#This Row],[1분기]:[4분기]]) -> 1051000
B44: 후방 스프로킷 | C44: 400000 | D44: 340000 | E44: 440000 | F44: 500000 | G44: =SUM(Sales[[#This Row],[1분기]:[4분기]]) -> 1680000
B45: 전방 스프로킷 | C45: 200000 | D45: 170000 | E45: 220000 | F45: 250000 | G45: =SUM(Sales[[#This Row],[1분기]:[4분기]]) -> 840000
B46: 핸들바 | C46: 1895000 | D46: 1611000 | E46: 3445000 | F46: 3333000 | G46: =SUM(Sales[[#This Row],[1분기]:[4분기]]) -> 10284000
B47: 브레이크 레버 | C47: 544000 | D47: 462000 | E47: 598000 | F47: 680000 | G47: =SUM(Sales[[#This Row],[1분기]:[4분기]]) -> 2284000
B48: 안장 기둥 | C48: 200000 | D48: 170000 | E48: 220000 | F48: 250000 | G48: =SUM(Sales[[#This Row],[1분기]:[4분기]]) -> 840000
B49: 핸들바 클램프 | C49: 60000 | D49: 51000 | E49: 66000 | F49: 75000 | G49: =SUM(Sales[[#This Row],[1분기]:[4분기]]) -> 252000
B50: 안장 주머니 | C50: 2413000 | D50: 2051000 | E50: 4000000 | F50: 3016000 | G50: =SUM(Sales[[#This Row],[1분기]:[4분기]]) -> 11480000
B51: 스포크 | C51: 233000 | D51: 198000 | E51: 256000 | F51: 291000 | G51: =SUM(Sales[[#This Row],[1분기]:[4분기]]) -> 978000
B52: 림 | C52: 354000 | D52: 301000 | E52: 389000 | F52: 443000 | G52: =SUM(Sales[[#This Row],[1분기]:[4분기]]) -> 1487000
B53: 타이어 | C53: 423000 | D53: 360000 | E53: 465000 | F53: 529000 | G53: =SUM(Sales[[#This Row],[1분기]:[4분기]]) -> 1777000
B54: 그립 | C54: 2222000 | D54: 1889000 | E54: 2444000 | F54: 2778000 | G54: =SUM(Sales[[#This Row],[1분기]:[4분기]]) -> 9333000
B55: 그립 테이프 | C55: 1550000 | D55: 1318000 | E55: 1705000 | F55: 1938000 | G55: =SUM(Sales[[#This Row],[1분기]:[4분기]]) -> 6511000
B56: 패드 | C56: 30000 | D56: 26000 | E56: 33000 | F56: 38000 | G56: =SUM(Sales[[#This Row],[1분기]:[4분기]]) -> 127000
B57: 체인 | C57: 208000 | D57: 177000 | E57: 229000 | F57: 260000 | G57: =SUM(Sales[[#This Row],[1분기]:[4분기]]) -> 874000
B58: 드레일러 | C58: 356000 | D58: 303000 | E58: 392000 | F58: 445000 | G58: =SUM(Sales[[#This Row],[1분기]:[4분기]]) -> 1496000
B59: 퀵 릴리즈 허브 | C59: 258000 | D59: 219000 | E59: 284000 | F59: 323000 | G59: =SUM(Sales[[#This Row],[1분기]:[4분기]]) -> 1084000
B60: 표준 허브 | C60: 414000 | D60: 352000 | E60: 455000 | F60: 518000 | G60: =SUM(Sales[[#This Row],[1분기]:[4분기]]) -> 1739000
B61: 페달 | C61: 369000 | D61: 314000 | E61: 406000 | F61: 461000 | G61: =SUM(Sales[[#This Row],[1분기]:[4분기]]) -> 1550000
B62: 체인 가드 | C62: 324000 | D62: 275000 | E62: 356000 | F62: 405000 | G62: =SUM(Sales[[#This Row],[1분기]:[4분기]]) -> 1360000
B63: 거울 | C63: 87000 | D63: 74000 | E63: 96000 | F63: 109000 | G63: =SUM(Sales[[#This Row],[1분기]:[4분기]]) -> 366000

Sheet 계산 (hidden)
A1: *** 이 시트는 숨겨 두어야 합니다. ****
E4: 제품 | F4: 1분기 | G4: 2분기 | H4: 3분기 | I4: 4분기 | J4: 합계
B5: 1 | C5: =IF($B5>n,"",LARGE(Sales[합계],1)) -> 18500000 | D5: =IF($B5>n,"",IF(C4=C5,MATCH(C5,OFFSET(Sales[합계],D4,),0)+D4,MATCH(C5,Sales[합계],0))) -> 1 | E5: =IF($B5>n,"",INDEX(Sales[제품],D5)) -> 프레임 | F5: =IF($B5>n,"",INDEX(Sales[1분기],$D5)) -> 4000000 | G5: =IF($B5>n,"",INDEX(Sales[2분기],$D5)) -> 4500000 | H5: =IF($B5>n,"",INDEX(Sales[3분기],$D5)) -> 5000000 | I5: =IF($B5>n,"",INDEX(Sales[4분기],$D5)) -> 5000000 | J5: =IF($B5>n,"",SUM(F5:I5)) -> 18500000
B6: 2 | C6: =IF($B6>n,"",LARGE(Sales[합계],2)) -> 11480000 | D6: =IF($B6>n,"",IF(C5=C6,MATCH(C6,OFFSET(Sales[합계],D5,),0)+D5,MATCH(C6,Sales[합계],0))) -> 16 | E6: =IF($B6>n,"",INDEX(Sales[제품],D6)) -> 안장 주머니 | F6: =IF($B6>n,"",INDEX(Sales[1분기],$D6)) -> 2413000 | G6: =IF($B6>n,"",INDEX(Sales[2분기],$D6)) -> 2051000 | H6: =IF($B6>n,"",INDEX(Sales[3분기],$D6)) -> 4000000 | I6: =IF($B6>n,"",INDEX(Sales[4분기],$D6)) -> 3016000 | J6: 11480000
B7: 3 | C7: =IF($B7>n,"",LARGE(Sales[합계],3)) -> 10284000 | D7: =IF($B7>n,"",IF(C6=C7,MATCH(C7,OFFSET(Sales[합계],D6,),0)+D6,MATCH(C7,Sales[합계],0))) -> 12 | E7: =IF($B7>n,"",INDEX(Sales[제품],D7)) -> 핸들바 | F7: =IF($B7>n,"",INDEX(Sales[1분기],$D7)) -> 1895000 | G7: =IF($B7>n,"",INDEX(Sales[2분기],$D7)) -> 1611000 | H7: =IF($B7>n,"",INDEX(Sales[3분기],$D7)) -> 3445000 | I7: =IF($B7>n,"",INDEX(Sales[4분기],$D7)) -> 3333000 | J7: 10284000
B8: 4 | C8: =IF($B8>n,"",LARGE(Sales[합계],4)) -> 9333000 | D8: =IF($B8>n,"",IF(C7=C8,MATCH(C8,OFFSET(Sales[합계],D7,),0)+D7,MATCH(C8,Sales[합계],0))) -> 20 | E8: =IF($B8>n,"",INDEX(Sales[제품],D8)) -> 그립 | F8: =IF($B8>n,"",INDEX(Sales[1분기],$D8)) -> 2222000 | G8: =IF($B8>n,"",INDEX(Sales[2분기],$D8)) -> 1889000 | H8: =IF($B8>n,"",INDEX(Sales[3분기],$D8)) -> 2444000 | I8: =IF($B8>n,"",INDEX(Sales[4분기],$D8)) -> 2778000 | J8: 9333000
B9: 5 | C9: =IF($B9>n,"",LARGE(Sales[합계],5)) -> 6511000 | D9: =IF($B9>n,"",IF(C8=C9,MATCH(C9,OFFSET(Sales[합계],D8,),0)+D8,MATCH(C9,Sales[합계],0))) -> 21 | E9: =IF($B9>n,"",INDEX(Sales[제품],D9)) -> 그립 테이프 | F9: =IF($B9>n,"",INDEX(Sales[1분기],$D9)) -> 1550000 | G9: =IF($B9>n,"",INDEX(Sales[2분기],$D9)) -> 1318000 | H9: =IF($B9>n,"",INDEX(Sales[3분기],$D9)) -> 1705000 | I9: =IF($B9>n,"",INDEX(Sales[4분기],$D9)) -> 1938000 | J9: 6511000
B10: 6 | C10: =IF($B10>n,"",LARGE(Sales[합계],6)) ->  | D10: =IF($B10>n,"",IF(C9=C10,MATCH(C10,OFFSET(Sales[합계],D9,),0)+D9,MATCH(C10,Sales[합계],0))) ->  | E10: =IF($B10>n,"",INDEX(Sales[제품],D10)) ->  | F10: =IF($B10>n,"",INDEX(Sales[1분기],$D10)) ->  | G10: =IF($B10>n,"",INDEX(Sales[2분기],$D10)) ->  | H10: =IF($B10>n,"",INDEX(Sales[3분기],$D10)) ->  | I10: =IF($B10>n,"",INDEX(Sales[4분기],$D10)) -> 
B11: 7 | C11: =IF($B11>n,"",LARGE(Sales[합계],7)) ->  | D11: =IF($B11>n,"",IF(C10=C11,MATCH(C11,OFFSET(Sales[합계],D10,),0)+D10,MATCH(C11,Sales[합계],0))) ->  | E11: =IF($B11>n,"",INDEX(Sales[제품],D11)) ->  | F11: =IF($B11>n,"",INDEX(Sales[1분기],$D11)) ->  | G11: =IF($B11>n,"",INDEX(Sales[2분기],$D11)) ->  | H11: =IF($B11>n,"",INDEX(Sales[3분기],$D11)) ->  | I11: =IF($B11>n,"",INDEX(Sales[4분기],$D11)) -> 
B12: 8 | C12: =IF($B12>n,"",LARGE(Sales[합계],8)) ->  | D12: =IF($B12>n,"",IF(C11=C12,MATCH(C12,OFFSET(Sales[합계],D11,),0)+D11,MATCH(C12,Sales[합계],0))) ->  | E12: =IF($B12>n,"",INDEX(Sales[제품],D12)) ->  | F12: =IF($B12>n,"",INDEX(Sales[1분기],$D12)) ->  | G12: =IF($B12>n,"",INDEX(Sales[2분기],$D12)) ->  | H12: =IF($B12>n,"",INDEX(Sales[3분기],$D12)) ->  | I12: =IF($B12>n,"",INDEX(Sales[4분기],$D12)) -> 
B13: 9 | C13: =IF($B13>n,"",LARGE(Sales[합계],9)) ->  | D13: =IF($B13>n,"",IF(C12=C13,MATCH(C13,OFFSET(Sales[합계],D12,),0)+D12,MATCH(C13,Sales[합계],0))) ->  | E13: =IF($B13>n,"",INDEX(Sales[제품],D13)) ->  | F13: =IF($B13>n,"",INDEX(Sales[1분기],$D13)) ->  | G13: =IF($B13>n,"",INDEX(Sales[2분기],$D13)) ->  | H13: =IF($B13>n,"",INDEX(Sales[3분기],$D13)) ->  | I13: =IF($B13>n,"",INDEX(Sales[4분기],$D13)) -> 
B14: 10 | C14: =IF($B14>n,"",LARGE(Sales[합계],10)) ->  | D14: =IF($B14>n,"",IF(C13=C14,MATCH(C14,OFFSET(Sales[합계],D13,),0)+D13,MATCH(C14,Sales[합계],0))) ->  | E14: =IF($B14>n,"",INDEX(Sales[제품],D14)) ->  | F14: =IF($B14>n,"",INDEX(Sales[1분기],$D14)) ->  | G14: =IF($B14>n,"",INDEX(Sales[2분기],$D14)) ->  | H14: =IF($B14>n,"",INDEX(Sales[3분기],$D14)) ->  | I14: =IF($B14>n,"",INDEX(Sales[4분기],$D14)) -> 
E15: ="" -> 
B16: =IncludeOther="yes" -> FALSE | E16: 기타 | F16: =SUM(Sales[1분기]) - SUM(F5:F14) -> 6533000 | G16: =SUM(Sales[2분기]) - SUM(G5:G14) -> 5555000 | H16: =SUM(Sales[3분기]) - SUM(H5:H14) -> 6958000 | I16: =SUM(Sales[4분기]) - SUM(I5:I14) -> 8170000 | J16: =SUM(Sales[합계]) - SUM(J5:J14) -> 27216000
E18: 합계 | F18: =SUM(Sales[1분기]) -> 18613000 | G18: =SUM(Sales[2분기]) -> 16924000 | H18: =SUM(Sales[3분기]) -> 23552000 | I18: =SUM(Sales[4분기]) -> 24235000 | J18: =SUM(Sales[합계]) -> 83324000
B22: ="전체 및 상위 " & n & " 개 제품" -> 전체 및 상위 5 개 제품
